[Event "Late-Titled-Tuesday-Blitz-June-04-2024"]
[Site "Chess.com"]
[Date "2024.06.04"]
[Round "9"]
[White "ArtemDyachuk"]
[Black "Zhigalko_Sergei"]
[Result "0-1"]
[WhiteElo "2688"]
[BlackElo "2913"]
[TimeControl "180+1"]
[EndTime "15:41:50 PDT"]
[Termination "Zhigalko_Sergei won by checkmate"]

1. e4 {[%clk 0:03:00.9]} 1... c5 {[%clk 0:02:59.4]} 2. Nf3 {[%clk 0:03:00.7]}
2... Nc6 {[%clk 0:02:59.7]} 3. Bb5 {[%clk 0:02:55.3]} 3... Nf6 {[%clk
0:02:59.6]} 4. Nc3 {[%clk 0:02:54]} 4... Qc7 {[%clk 0:02:59.6]} 5. O-O {[%clk
0:02:53.7]} 5... Nd4 {[%clk 0:02:59.4]} 6. Re1 {[%clk 0:02:53.2]} 6... a6 {[%clk
0:02:59.3]} 7. Bf1 {[%clk 0:02:53.1]} 7... e5 {[%clk 0:02:59.9]} 8. a4 {[%clk
0:02:47.6]} 8... Be7 {[%clk 0:02:58.3]} 9. d3 {[%clk 0:02:47.6]} 9... h6 {[%clk
0:02:57.9]} 10. Nd2 {[%clk 0:02:46.9]} 10... O-O {[%clk 0:02:48.3]} 11. a5
{[%clk 0:02:39.4]} 11... d6 {[%clk 0:02:44.1]} 12. Nc4 {[%clk 0:02:35.9]} 12...
Be6 {[%clk 0:02:43.9]} 13. Nb6 {[%clk 0:02:35.9]} 13... Rae8 {[%clk 0:02:41.5]}
14. h3 {[%clk 0:02:33.2]} 14... Nc6 {[%clk 0:02:33]} 15. Ncd5 {[%clk 0:01:26]}
15... Bxd5 {[%clk 0:02:31]} 16. Nxd5 {[%clk 0:01:20.7]} 16... Nxd5 {[%clk
0:02:27.5]} 17. exd5 {[%clk 0:01:21.6]} 17... Nb4 {[%clk 0:02:05.8]} 18. Qg4
{[%clk 0:00:59.4]} 18... Nxc2 {[%clk 0:01:40.1]} 19. Bxh6 {[%clk 0:00:52.5]}
19... Bf6 {[%clk 0:01:40.3]} 20. h4 {[%clk 0:00:01.9]} 20... Qc8 {[%clk
0:01:33.7]} 21. Qg3 {[%clk 0:00:02]} 21... Qf5 {[%clk 0:01:29.8]} 22. Re4 {[%clk
0:00:02]} 22... Nxa1 {[%clk 0:01:28.5]} 23. Rg4 {[%clk 0:00:02.2]} 23... Qh7
{[%clk 0:01:28.6]} 24. Be3 {[%clk 0:00:02.1]} 24... Nc2 {[%clk 0:01:28.3]} 25.
Bd2 {[%clk 0:00:02.1]} 25... Nd4 {[%clk 0:01:28.2]} 26. h5 {[%clk 0:00:03]}
26... Kh8 {[%clk 0:01:21.7]} 27. h6 {[%clk 0:00:02.9]} 27... g6 {[%clk
0:01:21.8]} 28. Qf3 {[%clk 0:00:02.9]} 28... Nxf3+ {[%clk 0:01:21.7]} 29. gxf3
{[%clk 0:00:01.8]} 29... Bd8 {[%clk 0:01:20.8]} 30. Bg5 {[%clk 0:00:02.1]} 30...
Bxg5 {[%clk 0:01:20.7]} 31. Rxg5 {[%clk 0:00:03]} 31... Qxh6 {[%clk 0:01:21.2]}
32. Rh5 {[%clk 0:00:03.9]} 32... gxh5 {[%clk 0:01:21.1]} 33. f4 {[%clk
0:00:03.7]} 33... Rg8+ {[%clk 0:01:22]} 34. Bg2 {[%clk 0:00:04.2]} 34... Qxf4
{[%clk 0:01:22.6]} 35. Kf1 {[%clk 0:00:05.1]} 35... Rxg2 {[%clk 0:01:22.7]} 36.
Ke1 {[%clk 0:00:06]} 36... Qxf2+ {[%clk 0:01:22.7]} 37. Kd1 {[%clk 0:00:06.9]}
37... h4 {[%clk 0:01:22.1]} 38. Kc1 {[%clk 0:00:06.5]} 38... Qxb2+ {[%clk
0:01:22.2]} 39. Kd1 {[%clk 0:00:06.3]} 39... Rg1# {[%clk 0:01:23.1]} 0-1

[Event "Late-Titled-Tuesday-Blitz-June-04-2024"]
[Site "Chess.com"]
[Date "2024.06.04"]
[Round "9"]
[White "cassoulet"]
[Black "MatthewG-p4p"]
[Result "1-0"]
[WhiteElo "2776"]
[BlackElo "2883"]
[TimeControl "180+1"]
[EndTime "15:41:51 PDT"]
[Termination "cassoulet won by resignation"]

1. d4 {[%clk 0:03:00.9]} 1... Nf6 {[%clk 0:02:59.9]} 2. Bg5 {[%clk 0:03:00.7]}
2... Ne4 {[%clk 0:03:00]} 3. h4 {[%clk 0:03:00.2]} 3... c5 {[%clk 0:03:00.1]} 4.
Nd2 {[%clk 0:02:59.9]} 4... Qa5 {[%clk 0:02:43.5]} 5. c3 {[%clk 0:02:39]} 5...
Nxd2 {[%clk 0:02:08.4]} 6. Qxd2 {[%clk 0:02:37.5]} 6... h6 {[%clk 0:02:00.8]} 7.
Bf4 {[%clk 0:02:35.3]} 7... d5 {[%clk 0:01:55.3]} 8. Nf3 {[%clk 0:02:27.4]} 8...
e6 {[%clk 0:01:44.4]} 9. e3 {[%clk 0:02:26.8]} 9... Nc6 {[%clk 0:01:43.6]} 10.
Bd3 {[%clk 0:02:21.8]} 10... Bd7 {[%clk 0:01:38.7]} 11. Ne5 {[%clk 0:02:20.5]}
11... cxd4 {[%clk 0:01:28.7]} 12. Nxc6 {[%clk 0:02:09.4]} 12... bxc6 {[%clk
0:01:14.7]} 13. exd4 {[%clk 0:02:09.4]} 13... c5 {[%clk 0:01:15.3]} 14. Be5
{[%clk 0:02:06.1]} 14... f6 {[%clk 0:01:02.1]} 15. Bg6+ {[%clk 0:02:04.9]} 15...
Kd8 {[%clk 0:01:02.5]} 16. Bg3 {[%clk 0:02:00.2]} 16... cxd4 {[%clk 0:01:01.3]}
17. Qxd4 {[%clk 0:02:00.3]} 17... e5 {[%clk 0:01:00.3]} 18. Qd2 {[%clk
0:01:57.1]} 18... Bd6 {[%clk 0:00:56.5]} 19. O-O {[%clk 0:01:55.5]} 19... Be6
{[%clk 0:00:54.1]} 20. Rfd1 {[%clk 0:01:53.4]} 20... Ke7 {[%clk 0:00:51.1]} 21.
Be4 {[%clk 0:01:40.9]} 21... Rad8 {[%clk 0:00:31.9]} 22. Bxd5 {[%clk 0:01:40]}
22... Bc5 {[%clk 0:00:28.4]} 23. c4 {[%clk 0:01:36.8]} 23... Qxd2 {[%clk
0:00:27]} 24. Rxd2 {[%clk 0:01:37.7]} 24... Bd4 {[%clk 0:00:26]} 25. Rxd4 {[%clk
0:01:32.3]} 25... exd4 {[%clk 0:00:11.9]} 26. Re1 {[%clk 0:01:32.2]} 26... Rhe8
{[%clk 0:00:12.4]} 27. Rxe6+ {[%clk 0:01:28.7]} 27... Kd7 {[%clk 0:00:11.9]} 28.
Ra6 {[%clk 0:01:23.2]} 28... Re1+ {[%clk 0:00:09.6]} 29. Kh2 {[%clk 0:01:22.1]}
29... d3 {[%clk 0:00:10.5]} 30. Rxa7+ {[%clk 0:01:20.7]} 30... Ke8 {[%clk
0:00:11]} 31. Bf4 {[%clk 0:01:16.4]} 31... g5 {[%clk 0:00:10]} 32. hxg5 {[%clk
0:01:14]} 32... hxg5 {[%clk 0:00:10.9]} 33. Bd2 {[%clk 0:01:13.7]} 33... Re2
{[%clk 0:00:11.1]} 34. Bf7+ {[%clk 0:01:08.5]} 34... Kf8 {[%clk 0:00:09.6]} 35.
Bb4+ {[%clk 0:01:08.7]} 35... Kg7 {[%clk 0:00:10.1]} 36. Bh5+ {[%clk 0:01:08.5]}
36... Re7 {[%clk 0:00:08.8]} 37. Rxe7+ {[%clk 0:01:07.8]} 1-0

[Event "Late-Titled-Tuesday-Blitz-June-04-2024"]
[Site "Chess.com"]
[Date "2024.06.04"]
[Round "9"]
[White "rhungaski"]
[Black "TheoSlade"]
[Result "1/2-1/2"]
[WhiteElo "2624"]
[BlackElo "2483"]
[TimeControl "180+1"]
[EndTime "15:41:51 PDT"]
[Termination "Game drawn by repetition"]

1. e4 {[%clk 0:03:00.9]} 1... e5 {[%clk 0:03:00.1]} 2. Nf3 {[%clk 0:03:00.8]}
2... Nc6 {[%clk 0:03:00.4]} 3. Bc4 {[%clk 0:03:01.3]} 3... Bc5 {[%clk 0:03:00]}
4. c3 {[%clk 0:03:01.4]} 4... Nf6 {[%clk 0:03:00.4]} 5. d3 {[%clk 0:03:01.8]}
5... d6 {[%clk 0:03:00.6]} 6. Bg5 {[%clk 0:03:01.1]} 6... h6 {[%clk 0:02:59.9]}
7. Bh4 {[%clk 0:03:01.2]} 7... Qe7 {[%clk 0:02:49]} 8. a4 {[%clk 0:02:56.3]}
8... a5 {[%clk 0:02:43.2]} 9. Nbd2 {[%clk 0:02:56.4]} 9... Be6 {[%clk
0:02:42.4]} 10. Qb3 {[%clk 0:02:52.9]} 10... O-O-O {[%clk 0:02:37.6]} 11. Bd5
{[%clk 0:02:43.5]} 11... g5 {[%clk 0:02:22.8]} 12. Bg3 {[%clk 0:02:41.1]} 12...
Nh5 {[%clk 0:02:12.9]} 13. Nc4 {[%clk 0:02:28.9]} 13... Bxd5 {[%clk 0:01:53]}
14. exd5 {[%clk 0:02:29.8]} 14... Nb8 {[%clk 0:01:44.8]} 15. Nxa5 {[%clk
0:02:24.7]} 15... Bb6 {[%clk 0:01:44.9]} 16. Nxb7 {[%clk 0:02:23.5]} 16... Kxb7
{[%clk 0:01:43.8]} 17. a5 {[%clk 0:02:23.8]} 17... e4 {[%clk 0:01:37]} 18. dxe4
{[%clk 0:02:03.3]} 18... Qxe4+ {[%clk 0:01:37.5]} 19. Kf1 {[%clk 0:02:04]} 19...
Rhe8 {[%clk 0:01:27.4]} 20. Nd4 {[%clk 0:01:45.9]} 20... Qd3+ {[%clk 0:01:16.7]}
21. Kg1 {[%clk 0:01:45.4]} 21... Qd2 {[%clk 0:01:12.8]} 22. h3 {[%clk
0:01:34.5]} 22... Nxg3 {[%clk 0:01:07.9]} 23. axb6 {[%clk 0:01:31.4]} 23... Re1+
{[%clk 0:00:53]} 24. Kh2 {[%clk 0:01:31.6]} 24... Rxh1+ {[%clk 0:00:35.3]} 25.
Rxh1 {[%clk 0:01:30.4]} 25... Nxh1 {[%clk 0:00:28.8]} 26. bxc7+ {[%clk
0:01:21.8]} 26... Kxc7 {[%clk 0:00:29.7]} 27. Kxh1 {[%clk 0:00:59.5]} 27... Qc1+
{[%clk 0:00:10.2]} 28. Kh2 {[%clk 0:00:59.5]} 28... Qf4+ {[%clk 0:00:10.8]} 29.
Kg1 {[%clk 0:00:59.2]} 29... Qc1+ {[%clk 0:00:04.2]} 30. Kh2 {[%clk 0:00:58.7]}
30... Qf4+ {[%clk 0:00:04.7]} 31. Kg1 {[%clk 0:00:59.3]} 31... Qc1+ {[%clk
0:00:05.2]} 32. Kh2 {[%clk 0:00:59.9]} 1/2-1/2

[Event "Late-Titled-Tuesday-Blitz-June-04-2024"]
[Site "Chess.com"]
[Date "2024.06.04"]
[Round "9"]
[White "ChessLebaneseSalah"]
[Black "MaxLeto"]
[Result "1-0"]
[WhiteElo "2586"]
[BlackElo "2436"]
[TimeControl "180+1"]
[EndTime "15:41:53 PDT"]
[Termination "ChessLebaneseSalah won by checkmate"]

1. e4 {[%clk 0:02:54.4]} 1... c5 {[%clk 0:03:00.3]} 2. Nf3 {[%clk 0:02:54.6]}
2... d6 {[%clk 0:03:00.8]} 3. d4 {[%clk 0:02:55.2]} 3... cxd4 {[%clk 0:03:01.7]}
4. Nxd4 {[%clk 0:02:56.1]} 4... Nf6 {[%clk 0:03:01.5]} 5. Nc3 {[%clk 0:02:56.7]}
5... a6 {[%clk 0:03:02]} 6. a3 {[%clk 0:02:55.4]} 6... e6 {[%clk 0:03:01.5]} 7.
g4 {[%clk 0:02:51.3]} 7... Be7 {[%clk 0:02:55.9]} 8. g5 {[%clk 0:02:45.6]} 8...
Nfd7 {[%clk 0:02:55.2]} 9. h4 {[%clk 0:02:45.2]} 9... b5 {[%clk 0:02:53.4]} 10.
Be3 {[%clk 0:02:38.3]} 10... Bb7 {[%clk 0:02:52.7]} 11. Rg1 {[%clk 0:02:37.4]}
11... Nb6 {[%clk 0:02:45.3]} 12. h5 {[%clk 0:02:29.2]} 12... g6 {[%clk
0:02:44.6]} 13. Qd2 {[%clk 0:02:09.9]} 13... N8d7 {[%clk 0:02:41.7]} 14. O-O-O
{[%clk 0:02:05.4]} 14... Ne5 {[%clk 0:02:40]} 15. f4 {[%clk 0:01:43.3]} 15...
Nec4 {[%clk 0:02:40]} 16. Qf2 {[%clk 0:01:40.9]} 16... Qc7 {[%clk 0:01:35.4]}
17. f5 {[%clk 0:01:30.9]} 17... e5 {[%clk 0:01:06.8]} 18. fxg6 {[%clk
0:01:30.4]} 18... hxg6 {[%clk 0:01:05.5]} 19. hxg6 {[%clk 0:01:30.4]} 19... Nxe3
{[%clk 0:00:24.5]} 20. Qxf7+ {[%clk 0:01:14]} 20... Kd7 {[%clk 0:00:24.9]} 21.
Qe6+ {[%clk 0:01:06.7]} 21... Kd8 {[%clk 0:00:16.1]} 22. g7 {[%clk 0:01:07]}
22... Re8 {[%clk 0:00:05.8]} 23. g8=Q {[%clk 0:01:06.9]} 23... exd4 {[%clk
0:00:03.4]} 24. g6 {[%clk 0:00:53.8]} 24... Nxd1 {[%clk 0:00:03]} 25. g7 {[%clk
0:00:49.7]} 25... dxc3 {[%clk 0:00:03]} 26. Qxe8+ {[%clk 0:00:49.4]} 26... Kxe8
{[%clk 0:00:02.8]} 27. g8=Q# {[%clk 0:00:50.3]} 1-0

[Event "Late-Titled-Tuesday-Blitz-June-04-2024"]
[Site "Chess.com"]
[Date "2024.06.04"]
[Round "9"]
[White "Eloist"]
[Black "Felix-Rose"]
[Result "1-0"]
[WhiteElo "2414"]
[BlackElo "2309"]
[TimeControl "180+1"]
[EndTime "15:42:06 PDT"]
[Termination "Eloist won by resignation"]

1. e4 {[%clk 0:02:58.5]} 1... e5 {[%clk 0:02:44.1]} 2. Nf3 {[%clk 0:02:56.9]}
2... Nc6 {[%clk 0:02:43.5]} 3. Bc4 {[%clk 0:02:56.2]} 3... Nf6 {[%clk
0:02:42.7]} 4. d3 {[%clk 0:02:56.3]} 4... Bc5 {[%clk 0:02:41.8]} 5. O-O {[%clk
0:02:56.2]} 5... d6 {[%clk 0:02:41.2]} 6. Nbd2 {[%clk 0:02:56.1]} 6... a5 {[%clk
0:02:38.2]} 7. c3 {[%clk 0:02:55.2]} 7... Ba7 {[%clk 0:02:36.8]} 8. h3 {[%clk
0:02:53]} 8... Be6 {[%clk 0:02:36.2]} 9. Bb5 {[%clk 0:02:52.3]} 9... O-O {[%clk
0:02:30.6]} 10. Re1 {[%clk 0:02:52.3]} 10... Ne7 {[%clk 0:02:29.9]} 11. Nf1
{[%clk 0:02:47.7]} 11... Ng6 {[%clk 0:02:28.8]} 12. Ng3 {[%clk 0:02:40.6]} 12...
c6 {[%clk 0:02:28.4]} 13. Ba4 {[%clk 0:02:40.3]} 13... Re8 {[%clk 0:02:23.6]}
14. d4 {[%clk 0:02:39.2]} 14... b5 {[%clk 0:02:22.6]} 15. Bc2 {[%clk 0:02:38.4]}
15... a4 {[%clk 0:02:18.7]} 16. Be3 {[%clk 0:02:32.4]} 16... Qc7 {[%clk
0:02:15.4]} 17. Ng5 {[%clk 0:02:27]} 17... Bd7 {[%clk 0:02:04.7]} 18. b3 {[%clk
0:02:27]} 18... axb3 {[%clk 0:02:02]} 19. Bxb3 {[%clk 0:02:27.1]} 19... exd4
{[%clk 0:01:58.1]} 20. Bxf7+ {[%clk 0:02:24.4]} 20... Kh8 {[%clk 0:01:56.9]} 21.
cxd4 {[%clk 0:02:12.8]} 21... Rf8 {[%clk 0:01:49.7]} 22. Bb3 {[%clk 0:02:07.3]}
22... d5 {[%clk 0:01:41.7]} 23. e5 {[%clk 0:01:57]} 23... Ng8 {[%clk 0:01:35.4]}
24. Qh5 {[%clk 0:01:55.3]} 24... Nh6 {[%clk 0:01:32.2]} 25. Bc2 {[%clk
0:01:50.3]} 25... Be8 {[%clk 0:01:25.1]} 26. Ne6 {[%clk 0:01:49.8]} 26... Qe7
{[%clk 0:01:19.1]} 27. Nxf8 {[%clk 0:01:48.8]} 27... Nxf8 {[%clk 0:01:16.9]} 28.
Qf3 {[%clk 0:01:28.1]} 28... Ng8 {[%clk 0:01:12.8]} 29. Nf5 {[%clk 0:01:26.9]}
29... Qd7 {[%clk 0:01:10.2]} 30. Nd6 {[%clk 0:01:15.1]} 30... Ne6 {[%clk
0:01:09]} 31. Bf5 {[%clk 0:01:14.4]} 31... g6 {[%clk 0:01:06.8]} 32. Bg4 {[%clk
0:01:06.8]} 32... h5 {[%clk 0:01:03.9]} 33. Bxe6 {[%clk 0:01:00.8]} 33... Qxe6
{[%clk 0:01:04.8]} 34. Qf8 {[%clk 0:00:42.6]} 34... Rb8 {[%clk 0:01:00.9]} 35.
Rac1 {[%clk 0:00:27.1]} 35... Bd7 {[%clk 0:00:52.5]} 36. Nf7+ {[%clk 0:00:25.2]}
36... Kh7 {[%clk 0:00:45.5]} 37. Ng5+ {[%clk 0:00:25.2]} 37... Kh8 {[%clk
0:00:44.3]} 38. Nxe6 {[%clk 0:00:25.2]} 1-0

[Event "Late-Titled-Tuesday-Blitz-June-04-2024"]
[Site "Chess.com"]
[Date "2024.06.04"]
[Round "9"]
[White "Bond_7_7_7"]
[Black "artin10862"]
[Result "0-1"]
[WhiteElo "2461"]
[BlackElo "2935"]
[TimeControl "180+1"]
[EndTime "15:42:07 PDT"]
[Termination "artin10862 won by checkmate"]

1. e4 {[%clk 0:02:56.7]} 1... e5 {[%clk 0:02:58.5]} 2. Nf3 {[%clk 0:02:56.1]}
2... Nf6 {[%clk 0:02:58.6]} 3. Nc3 {[%clk 0:02:54.3]} 3... Nc6 {[%clk
0:02:54.6]} 4. a3 {[%clk 0:02:54.4]} 4... Bc5 {[%clk 0:02:29.4]} 5. Nxe5 {[%clk
0:02:49]} 5... Nxe5 {[%clk 0:02:27]} 6. d4 {[%clk 0:02:48.4]} 6... Bd6 {[%clk
0:02:27.7]} 7. f4 {[%clk 0:02:45.2]} 7... Nc6 {[%clk 0:02:27.4]} 8. e5 {[%clk
0:02:44.7]} 8... Be7 {[%clk 0:02:27.6]} 9. exf6 {[%clk 0:02:42.7]} 9... Bxf6
{[%clk 0:02:28.3]} 10. d5 {[%clk 0:02:42.6]} 10... Nd4 {[%clk 0:02:22.3]} 11.
Be3 {[%clk 0:02:21.4]} 11... Qe7 {[%clk 0:02:19.4]} 12. Kf2 {[%clk 0:02:14.2]}
12... Nf5 {[%clk 0:02:15.8]} 13. Qd2 {[%clk 0:02:12.9]} 13... O-O {[%clk
0:02:06.7]} 14. Re1 {[%clk 0:01:49.9]} 14... c5 {[%clk 0:01:42.5]} 15. d6 {[%clk
0:01:41.2]} 15... Qd8 {[%clk 0:01:34.5]} 16. Ne4 {[%clk 0:01:30.3]} 16... b6
{[%clk 0:01:32.3]} 17. Qd5 {[%clk 0:01:23.2]} 17... Nxe3 {[%clk 0:01:32]} 18.
Qxa8 {[%clk 0:01:22.8]} 18... Nxc2 {[%clk 0:01:31.4]} 19. Rc1 {[%clk 0:01:22]}
19... Bd4+ {[%clk 0:00:54.8]} 20. Kf3 {[%clk 0:01:05]} 20... Ne3 {[%clk
0:00:54.5]} 21. Re1 {[%clk 0:00:50.7]} 21... f5 {[%clk 0:00:33.2]} 22. Rxe3
{[%clk 0:00:48.7]} 22... fxe4+ {[%clk 0:00:29.4]} 23. Rxe4 {[%clk 0:00:47.4]}
23... Qh4 {[%clk 0:00:28]} 24. Qd5+ {[%clk 0:00:40.8]} 24... Kh8 {[%clk
0:00:28]} 25. Bc4 {[%clk 0:00:37.1]} 25... Qf2+ {[%clk 0:00:27.4]} 26. Kg4
{[%clk 0:00:34.9]} 26... Qxg2+ {[%clk 0:00:28.1]} 27. Kh5 {[%clk 0:00:30.2]}
27... Qh3+ {[%clk 0:00:22.8]} 28. Kg5 {[%clk 0:00:29.9]} 28... h6+ {[%clk
0:00:22.8]} 29. Kg6 {[%clk 0:00:29.6]} 29... Rf6# {[%clk 0:00:21.3]} 0-1

[Event "Late-Titled-Tuesday-Blitz-June-04-2024"]
[Site "Chess.com"]
[Date "2024.06.04"]
[Round "9"]
[White "N_Mullodzhanov"]
[Black "CarlosjPineror"]
[Result "0-1"]
[WhiteElo "2521"]
[BlackElo "2682"]
[TimeControl "180+1"]
[EndTime "15:42:09 PDT"]
[Termination "CarlosjPineror won on time"]

1. e4 {[%clk 0:03:00.9]} 1... c5 {[%clk 0:02:56.4]} 2. c3 {[%clk 0:03:00.6]}
2... Nf6 {[%clk 0:02:55.5]} 3. e5 {[%clk 0:03:00.9]} 3... Nd5 {[%clk 0:02:55.9]}
4. Nf3 {[%clk 0:03:01.3]} 4... e6 {[%clk 0:02:55.9]} 5. d4 {[%clk 0:03:01.2]}
5... cxd4 {[%clk 0:02:56.1]} 6. cxd4 {[%clk 0:03:02.1]} 6... b6 {[%clk
0:02:56.4]} 7. Bd2 {[%clk 0:03:00.2]} 7... Na6 {[%clk 0:02:55.4]} 8. h4 {[%clk
0:02:54.5]} 8... Bb7 {[%clk 0:02:53.7]} 9. Nc3 {[%clk 0:02:53.1]} 9... Nac7
{[%clk 0:02:53.8]} 10. a3 {[%clk 0:02:51.4]} 10... Be7 {[%clk 0:02:52.4]} 11. h5
{[%clk 0:02:51.3]} 11... O-O {[%clk 0:02:52.3]} 12. Rh3 {[%clk 0:02:50.7]} 12...
f5 {[%clk 0:02:51.8]} 13. h6 {[%clk 0:02:48.3]} 13... g6 {[%clk 0:02:47.7]} 14.
Bd3 {[%clk 0:02:32.9]} 14... Rc8 {[%clk 0:02:46.1]} 15. Ne2 {[%clk 0:02:32.2]}
15... Kh8 {[%clk 0:02:44.1]} 16. Rc1 {[%clk 0:02:28.7]} 16... g5 {[%clk
0:02:38.2]} 17. Rh5 {[%clk 0:02:17.9]} 17... Rg8 {[%clk 0:02:38]} 18. g4 {[%clk
0:02:14.1]} 18... Nb4 {[%clk 0:02:10.5]} 19. axb4 {[%clk 0:00:59]} 19... Bxf3
{[%clk 0:02:08.6]} 20. Rh3 {[%clk 0:00:51.2]} 20... Bxg4 {[%clk 0:02:07.9]} 21.
Rg3 {[%clk 0:00:49.6]} 21... Nd5 {[%clk 0:02:04.2]} 22. Bb1 {[%clk 0:00:38.9]}
22... Rxc1 {[%clk 0:01:57.3]} 23. Qxc1 {[%clk 0:00:39.8]} 23... Bxe2 {[%clk
0:01:38.6]} 24. Kxe2 {[%clk 0:00:38.8]} 24... g4 {[%clk 0:01:36.8]} 25. b5
{[%clk 0:00:30.3]} 25... Bg5 {[%clk 0:01:17.5]} 26. f4 {[%clk 0:00:13.3]} 26...
gxf3+ {[%clk 0:01:16]} 27. Kxf3 {[%clk 0:00:13.7]} 27... Bxd2 {[%clk 0:01:15.4]}
28. Qxd2 {[%clk 0:00:14.6]} 28... Rxg3+ {[%clk 0:01:15.4]} 29. Kxg3 {[%clk
0:00:15]} 29... Qg8+ {[%clk 0:01:15.8]} 30. Kf2 {[%clk 0:00:15.2]} 30... Qg4
{[%clk 0:01:09.6]} 31. Qc1 {[%clk 0:00:07.5]} 31... Qxd4+ {[%clk 0:01:08.8]} 32.
Kg2 {[%clk 0:00:07.9]} 32... Qg4+ {[%clk 0:01:01.6]} 33. Kh1 {[%clk 0:00:02.4]}
33... Qh3+ {[%clk 0:00:59.9]} 34. Kg1 {[%clk 0:00:02.7]} 34... Qe3+ {[%clk
0:01:00.8]} 35. Qxe3 {[%clk 0:00:02.8]} 35... Nxe3 {[%clk 0:01:01.7]} 36. Bd3
{[%clk 0:00:01.5]} 36... Ng4 {[%clk 0:01:01.8]} 37. Kg2 {[%clk 0:00:01]} 37...
Nxh6 {[%clk 0:01:01.7]} 0-1

[Event "Late-Titled-Tuesday-Blitz-June-04-2024"]
[Site "Chess.com"]
[Date "2024.06.04"]
[Round "9"]
[White "Zampronha1971"]
[Black "ericovski"]
[Result "1-0"]
[WhiteElo "2430"]
[BlackElo "2563"]
[TimeControl "180+1"]
[EndTime "15:42:19 PDT"]
[Termination "Zampronha1971 won by resignation"]

1. e4 {[%clk 0:03:00.9]} 1... c6 {[%clk 0:02:57.6]} 2. d4 {[%clk 0:02:59]} 2...
d5 {[%clk 0:02:58.5]} 3. e5 {[%clk 0:02:57.5]} 3... Bf5 {[%clk 0:02:58.2]} 4.
Nc3 {[%clk 0:02:56.7]} 4... e6 {[%clk 0:02:57.4]} 5. g4 {[%clk 0:02:56.7]} 5...
Bg6 {[%clk 0:02:57.6]} 6. Nge2 {[%clk 0:02:56.9]} 6... c5 {[%clk 0:02:53.3]} 7.
h4 {[%clk 0:02:54]} 7... h5 {[%clk 0:02:52.8]} 8. Nf4 {[%clk 0:02:53.9]} 8...
Bh7 {[%clk 0:02:50.6]} 9. Nxh5 {[%clk 0:02:53.9]} 9... Nc6 {[%clk 0:02:46.9]}
10. Be3 {[%clk 0:02:51.1]} 10... Qb6 {[%clk 0:02:33.9]} 11. Na4 {[%clk
0:02:50.3]} 11... Qa5+ {[%clk 0:02:31]} 12. c3 {[%clk 0:02:50.5]} 12... cxd4
{[%clk 0:02:30.1]} 13. Bxd4 {[%clk 0:02:46.8]} 13... Nge7 {[%clk 0:02:24.2]} 14.
b4 {[%clk 0:02:42.3]} 14... Qc7 {[%clk 0:02:23]} 15. Bb5 {[%clk 0:02:29.1]}
15... a6 {[%clk 0:02:20.4]} 16. Bxc6+ {[%clk 0:02:12.4]} 16... Nxc6 {[%clk
0:02:18.3]} 17. Qe2 {[%clk 0:02:03.2]} 17... Nxd4 {[%clk 0:01:48.7]} 18. cxd4
{[%clk 0:02:02.2]} 18... Bxb4+ {[%clk 0:01:48.7]} 19. Kf1 {[%clk 0:01:59.4]}
19... b5 {[%clk 0:01:48.6]} 20. Nc5 {[%clk 0:01:55.8]} 20... Bxc5 {[%clk
0:01:47.8]} 21. Rc1 {[%clk 0:01:49.2]} 21... O-O {[%clk 0:01:34.8]} 22. Rxc5
{[%clk 0:01:48.3]} 22... Qa5 {[%clk 0:01:28.2]} 23. Kg2 {[%clk 0:01:47.9]} 23...
Qa3 {[%clk 0:01:20.6]} 24. Rh3 {[%clk 0:01:42.4]} 24... Be4+ {[%clk 0:01:15.2]}
25. f3 {[%clk 0:01:42.4]} 25... Bd3 {[%clk 0:01:09.7]} 26. Qd2 {[%clk
0:01:38.3]} 26... Rfc8 {[%clk 0:00:54.7]} 27. Qg5 {[%clk 0:01:24.5]} 27... Bg6
{[%clk 0:00:46.4]} 28. Nf4 {[%clk 0:01:21.3]} 28... Qxa2+ {[%clk 0:00:37.2]} 29.
Kg3 {[%clk 0:01:20.2]} 29... Rxc5 {[%clk 0:00:36.9]} 30. dxc5 {[%clk 0:01:16.7]}
30... Qb1 {[%clk 0:00:36.7]} 31. h5 {[%clk 0:01:08.9]} 31... Qe1+ {[%clk
0:00:10.8]} 32. Kh2 {[%clk 0:00:53.3]} 32... Qd2+ {[%clk 0:00:10.9]} 33. Kg3
{[%clk 0:00:53]} 33... Bd3 {[%clk 0:00:10.4]} 34. h6 {[%clk 0:00:50.1]} 34... g6
{[%clk 0:00:06.5]} 35. h7+ {[%clk 0:00:48.3]} 1-0